fUSD/lending_fUSD_20250517
["ID","MTS","AMOUNT","RATE_DAILY","PERIOD"]
[361311287,1747446650961,-8670.91618467,0.00016438,2]
[361311288,1747446650974,-1472.92,0.00016438,2]
[361311289,1747446650984,-1380.14,0.00016438,2]
[361311290,1747446650993,-1814.47,0.00016438,2]
[361311291,1747446651003,-400.0,0.00016438,2]
[361311292,1747446651013,-160.812682,0.00016438,2]
[361311293,1747446651023,-718.02,0.00016438,2]
[361311294,1747446651032,-400.0,0.00016438,2]
[361311295,1747446651042,-401.69685702,0.00016438,2]
[361311296,1747446651051,-6226.57,0.00016438,2]
[361311297,1747446651061,-400.0,0.00016438,2]
[361311298,1747446651070,-572.72,0.00016438,2]
[361311299,1747446651080,-572.36,0.00016438,2]
[361311300,1747446651089,-365.14110809,0.00016438,2]
[361311301,1747446651615,-602.08466992,0.00016438,2]
[361311302,1747446651627,-328.28747399,0.00016438,2]
[361311303,1747446651637,-263.36252101,0.00016438,2]
[361311304,1747446651648,-136.63747899,0.00016438,2]
[361311305,1747446651658,-12323.06,0.00016438,2]
[361311306,1747446651668,-400.0,0.00016438,2]
[361311307,1747446651678,-1680.05,0.00016438,2]
[361311308,1747446651688,-400.0,0.00016438,2]
[361311309,1747446651697,-400.0,0.00016438,2]
[361311310,1747446651706,-1468.74,0.00016438,2]
[361311311,1747446651716,-287.266867,0.00016438,2]
[361311312,1747446651726,-829.36,0.00016438,2]
[361311313,1747446651736,-400.0,0.00016438,2]
[361311314,1747446651745,-436.7,0.00016438,2]
[361311315,1747446651755,-4296.89,0.00016438,2]
[361311316,1747446651764,-400.0,0.00016438,2]
[361311317,1747446651774,-429.92,0.00016438,2]
[361311318,1747446651783,-1359.46,0.00016438,2]
[361311319,1747446651793,-1695.75,0.00016438,2]
[361311320,1747446651803,-351.13,0.00016438,2]
[361311321,1747446651812,-1618.58,0.00016438,2]
[361311322,1747446651822,-778.63,0.00016438,2]
[361311323,1747446651831,-13522.29,0.00016438,2]
[361311324,1747446651841,-1356.37,0.00016438,2]
[361311325,1747446651851,-1634.47,0.00016438,2]
[361311326,1747446651860,-1334.61555825,0.00016438,2]
[361311327,1747446651873,-350.4986,0.00016438,2]
[361311328,1747446651894,-1611.2401,0.00016438,2]
[361311329,1747446651907,-2497.89988,0.00016438,2]
[361311330,1747446651919,-10960.8441083,0.00016438,2]
[361311331,1747446651948,-2331.40353,0.00016438,2]
[361311332,1747446652300,-696.80759471,0.00016438,2]
[361311333,1747446652401,-358.66000013,0.00016438,2]
[361311334,1747446652425,-341.13566451,0.00016438,2]
[361311335,1747446652439,-504.32222768,0.00016438,2]
[361311336,1747446652456,-637.53307076,0.00016438,2]
[361311337,1747446652468,-4278.09966566,0.00016438,2]
[361311338,1747446652478,-419.15,0.00016438,2]
[361311339,1747446652488,-812.239118,0.00016438,2]
[361311340,1747446652497,-812.239118,0.00016438,2]
[361311341,1747446652507,-812.239118,0.00016438,2]
[361311342,1747446652518,-812.239118,0.00016438,2]
[361311343,1747446652528,-400.0,0.00016438,2]
[361311344,1747446652538,-400.43099107,0.00016438,2]
[361311345,1747446652548,-1783.23,0.00016438,2]
[361311346,1747446652558,-812.239118,0.00016438,2]
[361311347,1747446652568,-812.239118,0.00016438,2]
[361311348,1747446652577,-812.239118,0.00016438,2]
[361311349,1747446652587,-812.239118,0.00016438,2]
[361311350,1747446652596,-812.239118,0.00016438,2]
[361311351,1747446652606,-812.239118,0.00016438,2]
[361311352,1747446652616,-812.239118,0.00016438,2]
[361311353,1747446652625,-206.43025327,0.00016438,2]
[361311354,1747446652641,-1793.56974673,0.00016438,2]
[361311355,1747446652650,-400.0,0.00016438,2]
[361311356,1747446652660,-812.239118,0.00016438,2]
[361311357,1747446652669,-812.239118,0.00016438,2]
[361311358,1747446652678,-1597.11,0.00016438,2]
[361311359,1747446652687,-812.239118,0.00016438,2]
[361311360,1747446652697,-812.239118,0.00016438,2]
[361311361,1747446652706,-400.0,0.00016438,2]
[361311362,1747446652715,-812.239118,0.00016438,2]
[361311363,1747446652724,-812.239118,0.00016438,2]
[361311364,1747446652733,-400.47627158,0.00016438,2]
[361311365,1747446652742,-812.239118,0.00016438,2]
[361311366,1747446652751,-633.43,0.00016438,2]
[361311367,1747446652760,-400.0,0.00016438,2]
[361311368,1747446652769,-400.0,0.00016438,2]
[361311369,1747446652778,-812.239118,0.00016438,2]
[361311370,1747446652787,-1421.33,0.00016438,2]
[361311371,1747446652797,-812.239113,0.00016438,2]
[361311372,1747446652806,-385.835847,0.00016438,2]
[361311373,1747446652815,-385.835847,0.00016438,2]
[361311374,1747446652825,-385.835847,0.00016438,2]
[361311375,1747446652835,-385.835847,0.00016438,2]
[361311376,1747446652845,-385.835847,0.00016438,2]
[361311377,1747446653184,-385.835847,0.00016438,2]
[361311378,1747446653279,-519.88,0.00016438,2]
[361311379,1747446653288,-385.835847,0.00016438,2]
[361311380,1747446653297,-714.68,0.00016438,2]
[361311381,1747446653306,-1522.22,0.00016438,2]
[361311382,1747446653315,-385.835847,0.00016438,2]
[361311383,1747446653324,-2594.57864869,0.00016438,2]
[361311390,1747447574185,794.05,0.00027397,120]
[361311391,1747447625087,-162.62184309,0.000135,2]
[361311392,1747447625108,-200.0,0.00013511,2]
[361311393,1747447625130,-747.58,0.00013523,2]
[361311394,1747447625150,-101.05030841,0.00013699,2]
[361311395,1747447636108,2045.523327,0.0002739,120]
[361311396,1747447710738,450.0,0.0001,2]
[361311397,1747447754142,-500.0,0.00012,2]
[361311398,1747447754162,-228.56969159,0.00013699,2]
[361311399,1747447754183,-200.0,0.00013773,2]
[361311400,1747447754203,-200.0,0.00013847,2]
[361311401,1747447754224,-550.0,0.00014,2]
[361311402,1747447754244,-566.77,0.00014605,2]
[361311403,1747447754264,-1367.81,0.00014623,2]
[361311404,1747447754284,-170.37,0.00014647,2]
[361311405,1747447754304,-173.29014274,0.00014652,2]
[361311406,1747447754325,-150.0,0.00014728,7]
[361311407,1747447754346,-250.0,0.00014749,2]
[361311408,1747447754368,-523.98,0.00014752,2]
[361311409,1747447754388,-1500.0,0.00014753,2]
[361311410,1747447754411,-1200.0,0.00014779,2]
[361311411,1747447754432,-300.0,0.00014779,2]
[361311412,1747447754455,-300.0,0.00014779,2]
[361311413,1747447754481,-8546.22395064,0.0001478,2]
[361311414,1747447761108,-358.12604936,0.0001478,2]
[361311415,1747447761129,-2034.1,0.00014802,2]
[361311416,1747447761150,-200.0,0.0001485,2]
[361311417,1747447761170,-200.0,0.0001485,2]
[361311418,1747447761191,-3187.46,0.00014853,2]
[361311419,1747447761212,-503.25314186,0.000149,2]
[361311420,1747447761233,-152.98653759,0.00014915,2]
[361311421,1747447761253,-2715.79,0.00014927,2]
[361311422,1747447761273,-192.59,0.00015029,2]
[361311423,1747447761294,-250.0,0.00015068,2]
[361311424,1747447761316,-200.0,0.00015068,2]
[361311425,1747447761337,-1000.0,0.00015096,2]
[361311426,1747447761359,-256.71704753,0.00015141,2]
[361311427,1747447764091,-152.53276619,0.00015141,2]
[361311444,1747447832016,-94.00332814,0.00015141,2]
[361311445,1747447832026,-200.0,0.00015248,2]
[361311446,1747447832035,-300.0,0.00015354,2]
[361311447,1747447832044,-200.0,0.00015354,2]
[361311448,1747447832053,-503.25314186,0.00015383,2]
[361311449,1747447832062,-166.98,0.00015441,2]
[361311450,1747447832071,-166.98,0.00015452,2]
[361311451,1747447832079,-166.98,0.00015463,2]
[361311452,1747447832088,-166.98,0.00015474,2]
[361311453,1747447832097,-166.98,0.00015485,2]
[361311454,1747447832105,-166.98,0.00015496,2]
[361311455,1747447832114,-166.98,0.00015507,2]
[361311456,1747447832123,-166.98,0.00015518,2]
[361311457,1747447832132,-192.59,0.00015592,2]
[361311458,1747447832144,-180.42,0.00015595,2]
[361311459,1747447832153,-151.0,0.00015615,2]
[361311460,1747447832162,-155.6922842,0.00015615,2]
[361311461,1747447832171,-151.0,0.00015615,2]
[361311462,1747447832180,-207.4,0.00015615,2]
[361311463,1747447832189,-503.25314186,0.00015624,2]
[361311464,1747447832198,-75.81138744,0.00015698,2]
[361311465,1747447832399,-224.18861256,0.00015698,2]
[361311466,1747447832408,-300.0,0.00015699,2]
[361311467,1747447832417,-1200.0,0.00015699,2]
[361311468,1747447832426,-3186.1,0.000157,2]
[361311469,1747447832434,-400.0,0.000157,5]
[361311470,1747447832443,-813.60821029,0.000157,2]
[361311471,1747447832452,-518.39419446,0.0001574,2]
[361311472,1747447832461,-747.58,0.00015787,2]
[361311473,1747447832469,-3186.1,0.000158,2]
[361311475,1747447832478,-800.0,0.000158,5]
[361311477,1747447832491,-503.25314186,0.00015866,2]
[361311478,1747447832500,-1001.37705552,0.00015899,2]
[361311479,1747447832509,-3186.1,0.000159,2]
[361311480,1747447832518,-1200.0,0.000159,5]
[361311481,1747447832528,-166.98,0.00015983,2]
[361311482,1747447832536,-3056.27471942,0.0001599,2]
[361311483,1747447832545,-150.0,0.00016,2]
[361311484,1747447832554,-3186.1,0.00016,2]
[361311494,1747447832732,-3186.1,0.00016,2]
[361311497,1747447832758,-1082.79,0.00016,2]
[361311499,1747447832768,-600.0,0.00016,2]
[361311501,1747447832777,-503.25314186,0.00016107,2]
[361311503,1747447832786,-15169.85,0.00016138,2]
[361311505,1747447832794,-192.59,0.00016156,2]
[361311507,1747447832803,-190.86254879,0.00016163,2]
[361311509,1747447832813,-317.6803,0.00016235,2]
[361311511,1747447832822,-813.60821028,0.00016236,2]
[361311513,1747447832830,-5602.2958,0.00016236,2]
[361311515,1747447832839,-226.8154,0.00016236,2]
[361311517,1747447832848,-654.9524,0.00016236,2]
[361311519,1747447832858,-2500.0,0.00016236,2]
[361311521,1747447832866,-6483.03089214,0.00016237,2]
[361311523,1747447832875,-1418.1599,0.00016238,2]
[361311525,1747447832885,-1312.2781,0.00016238,2]
[361311527,1747447832894,-1734.0,0.000163,2]
[361311528,1747447832903,-321.84026297,0.00016328,2]
[361311530,1747447832913,-1000.0,0.00016335,2]
[361311532,1747447832922,-101826.54010176,0.00016336,2]
[361311797,1747447837973,-720.82,0.00015435,2]
[361311798,1747447837984,-51.64640911,0.00016236,2]
[361311812,1747447838404,-948.35359089,0.00016236,2]
[361311815,1747447838422,-5317.30998976,0.00016336,2]
[361311817,1747447838434,-350.0850006,0.00016336,2]
[361311832,1747447840071,-288.25852578,0.00016336,2]
[361311833,1747447840082,-1328.43856053,0.00016336,2]
[361311842,1747447843316,-32527.22852157,0.00016336,2]
[361311843,1747447843327,-1065.89594453,0.00016337,5]
[361311844,1747447843337,-16523.40600715,0.00016337,2]
[361311845,1747447843346,-192.0499,0.00016338,2]
[361311846,1747447843355,-20397.2888,0.00016338,2]
[361311847,1747447843365,-196.01890776,0.00016338,2]
[361311848,1747447843375,-171.12313928,0.00016338,2]
[361311849,1747447843384,-942.6162,0.00016338,2]
[361311850,1747447843395,-407.5446,0.00016338,2]
[361311852,1747447843404,-500.0,0.00016338,2]
[361311854,1747447843413,-1828.0661,0.00016338,2]
[361311855,1747447843422,-6483.03089214,0.0001634,2]
[361311857,1747447843432,-503.25314186,0.00016348,2]
[361311859,1747447843441,-875.019465,0.00016355,2]
[361311861,1747447843450,-510.0691,0.00016356,2]
[361311863,1747447843459,-4039.0,0.00016369,2]
[361311865,1747447843468,-6827.0,0.00016369,2]
[361311866,1747447843478,-158.405,0.00016369,2]
[361311867,1747447843488,-847.696,0.00016369,2]
[361311868,1747447843499,-962.852,0.00016369,2]
[361311869,1747447843509,-1029.0,0.000164,2]
[361311870,1747447843518,-1065.289,0.00016411,2]
[361311871,1747447843527,-169.63312385,0.00016411,2]
[361311872,1747447843537,-22754.73,0.00016412,2]
[361311873,1747447843548,-864.45616425,0.0001642,2]
[361311874,1747447843559,-154.14,0.00016428,2]
[361311875,1747447843568,-295.560138,0.00016428,2]
[361311876,1747447843579,-16523.40600711,0.00016428,2]
[361311878,1747447843588,-216.15475119,0.0001643,2]
[361311879,1747447843676,-188.40979327,0.0001643,2]
[361311880,1747447843686,-174.61870793,0.0001643,2]
[361311881,1747447843697,-172.3241034,0.00016431,2]
[361311882,1747447843708,-54258.8093243,0.00016431,2]
[361311883,1747447843717,-34035.2013466,0.00016431,2]
[361311884,1747447843726,-1049.53508552,0.00016437,5]
[361311885,1747447843735,-1000.0,0.00016437,2]
[361311886,1747447843745,-224.32,0.00016437,2]
[361311887,1747447843755,-1000.0,0.00016437,2]
[361311888,1747447843764,-177.38188433,0.00016438,2]
[361311889,1747447843773,-234656.57090759,0.00016438,2]
[361311890,1747447843783,-817.0,0.00016438,2]
[361311891,1747447843792,-151.0,0.00016438,2]
[361311892,1747447843801,-201.034695,0.00016438,2]
[361311893,1747447843810,-400.0,0.00016438,2]
[361311894,1747447843819,-151.0,0.00016438,2]
[361311895,1747447843828,-152.639894,0.00016438,2]
[361311896,1747447843837,-400.6824918,0.00016438,2]
[361311897,1747447843847,-154.426419,0.00016438,2]
[361311898,1747447843856,-2000.0,0.00016438,2]
[361311899,1747447843865,-400.80026051,0.00016438,2]
[361311900,1747447843874,-200.0,0.00016438,2]
[361311901,1747447843883,-151.0,0.00016438,2]
[361311902,1747447843892,-151.712992,0.00016438,2]
[361311903,1747447843902,-658.10582,0.00016438,2]
[361311905,1747447843912,-151.0,0.00016438,2]
[361311906,1747447843922,-151.0,0.00016438,2]
[361311907,1747447843931,-151.0,0.00016438,2]
[361311908,1747447843940,-243.043529,0.00016438,2]
[361311909,1747447843950,-402.85990824,0.00016438,2]
[361311910,1747447843959,-400.0,0.00016438,2]
[361311911,1747447843968,-400.0,0.00016438,2]
[361311912,1747447843977,-401.07796363,0.00016438,2]
[361311913,1747447843986,-411.19,0.00016438,2]
[361311914,1747447843995,-160.852961,0.00016438,2]
[361311915,1747447844004,-400.0,0.00016438,2]
[361311916,1747447844014,-263.18733514,0.00016438,2]
[361311917,1747447844023,-401.20750159,0.00016438,2]
[361311918,1747447844034,-405.28402125,0.00016438,2]
[361311919,1747447844044,-400.0,0.00016438,2]
[361311920,1747447844054,-274.58541299,0.00016438,2]
[361311921,1747447844063,-400.0,0.00016438,2]
[361311922,1747447844072,-910.82,0.00016438,2]
[361311923,1747447844083,-417.5037603,0.00016438,2]
[361311924,1747447844093,-400.0,0.00016438,2]
[361311925,1747447844103,-544.15773454,0.00016438,2]
[361311926,1747447844114,-761.19,0.00016438,2]
[361311927,1747447844125,-472.4,0.00016438,2]
[361311928,1747447844134,-400.0,0.00016438,2]
[361311929,1747447844143,-400.0,0.00016438,2]
[361311930,1747447844152,-400.0,0.00016438,2]
[361311931,1747447844161,-400.0,0.00016438,2]
[361311932,1747447844170,-672.56,0.00016438,2]
[361311933,1747447844180,-402.135328,0.00016438,2]
[361311934,1747447844190,-400.0,0.00016438,2]
[361311935,1747447844199,-400.0,0.00016438,2]
[361311936,1747447844209,-274.89502786,0.00016438,2]
[361311937,1747447844218,-433.67,0.00016438,2]
[361311938,1747447844228,-961.31,0.00016438,2]
[361311939,1747447844237,-400.0,0.00016438,2]
[361311940,1747447844248,-400.0,0.00016438,2]
[361311941,1747447844257,-400.0,0.00016438,2]
[361311942,1747447844268,-465.94,0.00016438,2]
[361311943,1747447844277,-865.31,0.00016438,2]
[361311944,1747447844287,-499.1250722,0.00016438,2]
[361311945,1747447844296,-400.0,0.00016438,2]
[361311946,1747447844305,-400.0,0.00016438,2]
[361311947,1747447844315,-500.0,0.00016438,2]
[361311948,1747447844324,-500.0,0.00016438,2]
[361311949,1747447844333,-500.0,0.00016438,2]
[361311950,1747447844342,-500.0,0.00016438,2]
[361311951,1747447844351,-500.0,0.00016438,2]
[361311952,1747447844360,-500.0,0.00016438,2]
[361311953,1747447844369,-500.0,0.00016438,2]
[361311954,1747447844378,-500.0,0.00016438,2]
[361311955,1747447844387,-400.0,0.00016438,2]
[361311956,1747447844397,-710.6,0.00016438,2]
[361311957,1747447844406,-916.4,0.00016438,2]
[361311958,1747447844416,-400.0,0.00016438,2]
[361311959,1747447844426,-566.23,0.00016438,2]
[361311960,1747447844437,-400.0,0.00016438,2]
[361311961,1747447844447,-400.0,0.00016438,2]
[361311962,1747447844458,-434.55,0.00016438,2]
[361311963,1747447844468,-400.0,0.00016438,2]
[361311964,1747447844477,-406.31336558,0.00016438,2]
[361311965,1747447844487,-400.0,0.00016438,2]
[361311966,1747447844501,-402.15304128,0.00016438,2]
[361311967,1747447844512,-402.27598931,0.00016438,2]
[361311968,1747447844523,-400.70046305,0.00016438,2]
[361311969,1747447844535,-570.82,0.00016438,2]
[361311970,1747447844544,-234.22209455,0.00016438,2]
[361311971,1747447844553,-451.62191776,0.00016438,2]
[361311972,1747447844562,-400.0,0.00016438,2]
[361311973,1747447844572,-407.95514248,0.00016438,2]
[361311974,1747447844580,-400.0,0.00016438,2]
[361311975,1747447844589,-500.0,0.00016438,2]
[361311976,1747447844598,-500.0,0.00016438,2]
[361311977,1747447844607,-500.0,0.00016438,2]
[361311978,1747447844616,-528.0810444,0.00016438,2]
[361311979,1747447844625,-439.63809909,0.00016438,2]
[361311980,1747447844634,-437.63,0.00016438,2]
[361311981,1747447844643,-405.91574884,0.00016438,2]
[361311982,1747447844653,-400.0,0.00016438,2]
[361311983,1747447844663,-400.13745158,0.00016438,2]
[361311984,1747447844672,-400.0,0.00016438,2]
[361311985,1747447844681,-400.0,0.00016438,2]
[361311986,1747447844691,-406.54159439,0.00016438,2]
[361311987,1747447844699,-401.38961373,0.00016438,2]
[361311988,1747447844708,-401.70461721,0.00016438,2]
[361311989,1747447844717,-400.0,0.00016438,2]
[361311990,1747447844726,-400.0,0.00016438,2]
[361311991,1747447844735,-151.742381,0.00016438,2]
[361311992,1747447844744,-960.0,0.00016438,2]
[361311993,1747447844753,-400.0,0.00016438,2]
[361311994,1747447844763,-400.0,0.00016438,2]
[361311995,1747447844771,-925.29,0.00016438,2]
[361311996,1747447844781,-503.8746747,0.00016438,2]
[361311997,1747447844790,-1095.11,0.00016438,2]
[361311998,1747447844799,-400.0,0.00016438,2]
[361311999,1747447844808,-506.55,0.00016438,2]
[361312000,1747447844817,-400.0,0.00016438,2]
[361312001,1747447844826,-400.09079124,0.00016438,2]
[361312002,1747447844835,-400.31087525,0.00016438,2]
[361312003,1747447844845,-400.0,0.00016438,2]
[361312004,1747447844854,-400.0,0.00016438,2]
[361312005,1747447844863,-400.70211147,0.00016438,2]
[361312006,1747447844873,-400.0,0.00016438,2]
[361312007,1747447844882,-349.68375063,0.00016438,2]
[361312008,1747447844891,-231.21264556,0.00016438,2]
[361312009,1747447844903,-400.0,0.00016438,2]
[361312010,1747447844912,-151.0,0.00016438,2]
[361312011,1747447844920,-634.52,0.00016438,2]
[361312012,1747447844930,-151.0,0.00016438,2]
[361312013,1747447844939,-400.0,0.00016438,2]
[361312014,1747447844948,-151.0,0.00016438,2]
[361312015,1747447844957,-151.0,0.00016438,2]
[361312016,1747447844966,-151.0,0.00016438,2]
[361312017,1747447844976,-400.0,0.00016438,2]
[361312018,1747447844985,-299.503522,0.00016438,2]
[361312019,1747447844995,-401.25816526,0.00016438,2]
[361312020,1747447845005,-400.0,0.00016438,2]
[361312021,1747447845014,-401.72521114,0.00016438,2]
[361312022,1747447845024,-400.0,0.00016438,2]
[361312023,1747447845033,-400.0,0.00016438,2]
[361312024,1747447845043,-400.0,0.00016438,2]
[361312025,1747447845052,-402.72763041,0.00016438,2]
[361312026,1747447845061,-401.16943069,0.00016438,2]
[361312027,1747447845070,-400.52811466,0.00016438,2]
[361312028,1747447845079,-403.31551138,0.00016438,2]
[361312029,1747447845088,-400.0,0.00016438,2]
[361312030,1747447845097,-404.09193214,0.00016438,2]
[361312031,1747447845106,-400.76264982,0.00016438,2]
[361312032,1747447845115,-2750.13,0.00016438,2]
[361312033,1747447845124,-400.3560523,0.00016438,2]
[361312034,1747447845133,-400.0,0.00016438,2]
[361312035,1747447845142,-400.0,0.00016438,2]
[361312036,1747447845153,-182.96351274,0.00016438,2]
[361312037,1747447845161,-404.76931733,0.00016438,2]
[361312038,1747447845172,-400.0,0.00016438,2]
[361312039,1747447845180,-401.51573794,0.00016438,2]
[361312040,1747447845189,-405.05225931,0.00016438,2]
[361312041,1747447845198,-400.16009758,0.00016438,2]
[361312042,1747447845207,-408.68227006,0.00016438,2]
[361312043,1747447845216,-462.21886935,0.00016438,2]
[361312044,1747447845225,-400.0,0.00016438,2]
[361312045,1747447845233,-407.07658459,0.00016438,2]
[361312046,1747447845242,-400.0,0.00016438,2]
[361312047,1747447845252,-414.14525849,0.00016438,2]
[361312048,1747447845260,-404.31457879,0.00016438,2]
[361312049,1747447845269,-351.38984149,0.00016438,2]
[361312050,1747447845279,-402.48061646,0.00016438,2]
[361312051,1747447845287,-474.5,0.00016438,2]
[361312052,1747447845296,-400.74517825,0.00016438,2]
[361312053,1747447845305,-400.0,0.00016438,2]
[361312054,1747447845314,-1270.68,0.00016438,2]
[361312055,1747447845324,-545.81,0.00016438,2]
[361312056,1747447845334,-400.0,0.00016438,2]
[361312057,1747447845343,-400.0,0.00016438,2]
[361312058,1747447845352,-400.0,0.00016438,2]
[361312059,1747447845361,-400.0,0.00016438,2]
[361312060,1747447845371,-400.45747145,0.00016438,2]
[361312061,1747447845380,-402.7448303,0.00016438,2]
[361312062,1747447845389,-400.7017133,0.00016438,2]
[361312063,1747447845399,-418.51574286,0.00016438,2]
[361312064,1747447845408,-482.87,0.00016438,2]
[361312065,1747447845417,-402.5627229,0.00016438,2]
[361312066,1747447845427,-400.0,0.00016438,2]
[361312067,1747447845436,-400.0,0.00016438,2]
[361312068,1747447845445,-400.0,0.00016438,2]
[361312069,1747447845454,-400.58320063,0.00016438,2]
[361312070,1747447845463,-400.30334358,0.00016438,2]
[361312071,1747447845472,-676.21,0.00016438,2]
[361312072,1747447845481,-403.29545572,0.00016438,2]
[361312073,1747447845494,-400.0,0.00016438,2]
[361312074,1747447845503,-501.76830423,0.00016438,2]
[361312075,1747447845512,-400.0,0.00016438,2]
[361312076,1747447845521,-400.0,0.00016438,2]
[361312077,1747447845531,-400.0,0.00016438,2]
[361312078,1747447845540,-449.18,0.00016438,2]
[361312079,1747447845549,-400.0,0.00016438,2]
[361312080,1747447845558,-400.0,0.00016438,2]
[361312081,1747447845570,-400.0,0.00016438,2]
[361312082,1747447845579,-400.0,0.00016438,2]
[361312083,1747447845588,-518.39,0.00016438,2]
[361312084,1747447845597,-155.588269,0.00016438,2]
[361312085,1747447845606,-400.0,0.00016438,2]
[361312086,1747447845615,-400.91025679,0.00016438,2]
[361312087,1747447845624,-400.5107441,0.00016438,2]
[361312088,1747447845634,-400.0,0.00016438,2]
[361312089,1747447845643,-400.0,0.00016438,2]
[361312090,1747447845654,-400.0,0.00016438,2]
[361312091,1747447845664,-400.0,0.00016438,2]
[361312092,1747447845674,-403.37163716,0.00016438,2]
[361312093,1747447845683,-595.16,0.00016438,2]
[361312094,1747447845692,-400.0,0.00016438,2]
[361312095,1747447845702,-400.0,0.00016438,2]
[361312096,1747447845710,-400.0,0.00016438,2]
[361312097,1747447845719,-408.68735036,0.00016438,2]
[361312098,1747447845729,-400.0,0.00016438,2]
[361312099,1747447845738,-151.0,0.00016438,2]
[361312100,1747447845747,-158.432842,0.00016438,2]
[361312101,1747447845756,-405.70871464,0.00016438,2]
[361312102,1747447845766,-400.0,0.00016438,2]
[361312103,1747447845776,-400.0,0.00016438,2]
[361312104,1747447845785,-946.53,0.00016438,2]
[361312105,1747447845794,-400.0,0.00016438,2]
[361312106,1747447845803,-505.21763481,0.00016438,2]
[361312107,1747447845813,-400.0,0.00016438,2]
[361312108,1747447845822,-1700.65,0.00016438,2]
[361312109,1747447845832,-400.0,0.00016438,2]
[361312110,1747447845842,-400.0,0.00016438,2]
[361312111,1747447845851,-400.40392991,0.00016438,2]
[361312112,1747447845861,-400.0,0.00016438,2]
[361312113,1747447845870,-400.0,0.00016438,2]
[361312114,1747447845879,-400.0,0.00016438,2]
[361312115,1747447845888,-198.53532534,0.00016438,2]
[361312116,1747447845899,-400.0,0.00016438,2]
[361312117,1747447845908,-400.0,0.00016438,2]
[361312118,1747447845918,-400.0,0.00016438,2]
[361312119,1747447845927,-400.0,0.00016438,2]
[361312120,1747447845936,-854.74,0.00016438,2]
[361312121,1747447845945,-400.0,0.00016438,2]
[361312122,1747447845956,-151.0,0.00016438,2]
[361312123,1747447845965,-151.337283,0.00016438,2]
[361312124,1747447845974,-1133.99,0.00016438,2]
[361312125,1747447845984,-200.0,0.00016438,2]
[361312126,1747447845995,-153.24133,0.00016438,2]
[361312127,1747447846004,-376.33057043,0.00016438,2]
[361312128,1747447846013,-402.62646413,0.00016438,2]
[361312129,1747447846022,-424.05,0.00016438,2]
[361312130,1747447846031,-400.0,0.00016438,2]
[361312131,1747447846040,-401.03032558,0.00016438,2]
[361312132,1747447846049,-954.25,0.00016438,2]
[361312133,1747447846059,-402.92768797,0.00016438,2]
[361312134,1747447846070,-402.48012522,0.00016438,2]
[361312135,1747447846080,-165.81358558,0.00016438,2]
[361312136,1747447846090,-400.0,0.00016438,2]
[361312137,1747447846099,-458.1,0.00016438,2]
[361312138,1747447846108,-410.57081234,0.00016438,2]
[361312139,1747447846116,-535.002497,0.00016438,2]
[361312140,1747447846126,-400.0,0.00016438,2]
[361312141,1747447846135,-402.09917323,0.00016438,2]
[361312142,1747447846144,-861.89,0.00016438,2]
[361312143,1747447846153,-400.0,0.00016438,2]
[361312144,1747447846161,-400.0,0.00016438,2]
[361312145,1747447846170,-400.0,0.00016438,2]
[361312146,1747447846179,-404.0857353,0.00016438,2]
[361312147,1747447846188,-482.28,0.00016438,2]
[361312148,1747447846197,-400.41845131,0.00016438,2]
[361312149,1747447846206,-400.0,0.00016438,2]